Cogmind - Beta 16 @@@ ROGUE MODE // 2025.11.05 @ 22:15:13 Player: shapeshifter Result: Destroyed self with Mini Grenade Launcher Performance ------------- Evolutions (0) 0 Regions Visited (2) 400 Robots Destroyed (14) 70 Value Destroyed (128) 128 Prototype IDs (0) 0 Alien Tech Used (0) 0 Bonus (0) 0 TOTAL SCORE: 598 Bonus ------- None Cogmind --------- Core Integrity 0/250 Matter 57/300 Energy 100/100 System Corruption 3% Temperature Cool (0) Movement Core (100) Ox1 Location -10/Mines Parts ------- > --- POWER (1) -------- (None) > --- PROPULSION (2) --- (None) > --- UTILITY (2) ------ Small Storage Unit > --- WEAPON (2) ------- Mini Grenade Launcher > --- INVENTORY (8) ---- Cryofiber Web Improved Heat Sink Hardened Light Armor Plating Improved Datajack Peak State ------------ > --- POWER ------------ Ion Engine > --- PROPULSION ------- Improved Treads Improved Treads > --- UTILITY ---------- Small Storage Unit Hardened Light Armor Plating > --- WEAPON ----------- Small Laser Mini Grenade Launcher > --- INVENTORY -------- Improved Treads Improved Treads Cryofiber Web Improved Heat Sink Hardened Light Armor Plating Hardened Light Armor Plating Assault Rifle Improved Datajack [Rating: 12] Favorites ----------- Power Ion Engine Engine Ion Engine Propulsion Improved Treads Treads Improved Treads Utility Small Storage Unit Device Seismic Detector Storage Small Storage Unit Protection Hardened Light Armor Plating Weapon Small Laser Energy Gun Small Laser Ballistic Gun Assault Rifle Launcher Mini Grenade Launcher Build | -11 -10 -10 ------- Run | Yrd Mat Min Slots Evolved . | . . . Power . | . . . Propulsion . | . . . Utility . | . . . Weapon . | . . . Parts Attached 15 | 7 3 5 Power 2 | 1 1 . Engine 2 | 1 1 . Core . | . . . Reactor . | . . . Propulsion 6 | 2 2 2 Treads 6 | 2 2 2 Leg . | . . . Wheel . | . . . Hover . | . . . Flight . | . . . Utility 4 | 2 . 2 Device 1 | 1 . . Storage 1 | 1 . . Processor . | . . . Hackware . | . . . Protection 2 | . . 2 Artifact . | . . . Weapon 3 | 2 . 1 Energy Gun 1 | 1 . . Energy Cannon . | . . . Ballistic Gun 1 | 1 . . Ballistic Cannon . | . . . Launcher 1 | . . 1 Special Weapon . | . . . Impact Weapon . | . . . Slashing Weapon . | . . . Piercing Weapon . | . . . Special Melee Weapon . | . . . Unidentified Prototypes . | . . . Parts Lost 9 | . . 9 Power 1 | . . 1 Propulsion 4 | . . 4 Utility 2 | . . 2 Weapon 2 | . . 2 Highest Loss Streak 7 | . . 7 To Critical Strikes . | . . . Average Backups 6 | 4 6 7 Power . | 1 . . Propulsion 1 | 1 2 1 Utility 3 | . 2 4 Weapon . | . 1 . Tool/Special . | . . . Unused Backups 10 | . 4 6 Power . | . . . Propulsion 2 | . 2 . Utility 6 | . 1 5 Weapon 1 | . 1 . Tool/Special 1 | . . 1 Average Slot Usage (%) 96 | . 100 95 Engine 12 | . 14 12 Treads 27 | . 28 27 Device 5 | . 14 2 Storage 14 | . 14 14 Protection 7 | . . 10 Energy Gun 13 | . 14 12 Ballistic Gun 13 | . 14 12 Launcher 1 | . . 1 Peak Build Rating 12 | 7 10 12 Average Rating 9 | 4 8 10 On Entrance 5 | . 7 10 Avg Prop Armor Cover (%) . | . . . Naked Turns . | . . . Heaviest Build 18 | 12 14 18 Greatest Support 46 | 40 46 46 Greatest Overweight (x) . | . . . Average Overweight (x) . | . . . Largest Inventory Capacity 8 | 8 8 8 Average Capacity 7 | 7 8 8 Most Carried 8 | 7 8 8 Average Carried 6 | 4 6 7 Final Capacity 8 | 8 8 8 Final Carried 8 | 5 8 4 Class Distribution -------------------- 100% | Mutant Dominant Class ---------------- Mutant | -10/Materials Mutant | -10/Mines Resources | -11 -10 -10 ----------- Run | Yrd Mat Min Matter Collected 431 | 277 38 116 Remotely . | . . . Salvage Created 344 | 128 38 178 Parts 27 | 7 . 20 Haulers Intercepted . | . . . Recyclers Shooed . | . . . Parts Field Recycled . | . . . Retrieved Matter . | . . . Parts Self-Destructed . | . . . Prevented . | . . . Parts Restored . | . . . Kills | -11 -10 -10 ------- Run | Yrd Mat Min Combat Hostiles Destroyed 17 | . 1 16 Guns 4 | . 1 3 AOE 13 | . . 13 Classes Destroyed 7 | 2 1 4 Worker 2 | . . 2 Builder 1 | . . 1 Tunneler 3 | 2 . 1 Recycler 1 | 1 . . Swarmer 6 | . . 6 Grunt 1 | . 1 . Assembled 10 | . . 10 Best Kill Streak 12 | 1 1 12 Combat Bots Only 10 | . 1 10 Max Kills in Single Turn 2 | 1 1 2 Gunslinging . | . . . Exploded 2 | . . 2 Melee . | . . . Uniques/NPCs Destroyed . | . . . Combat | -11 -10 -10 -------- Run | Yrd Mat Min Hostile Shots Fired 56 | . 4 52 Missed 5 | . 1 4 Hits 51 | . 3 48 Melee 6 | . . 6 Projectile 45 | . 3 42 AOE 16 | . . 16 Damage Taken 1624 | . 33 1591 Core 289 | . 10 279 Absorbed by Shields . | . . . Core Remaining (%) 100 | 100 . . Volleys Fired 53 | 12 4 37 Largest 2 | 2 2 2 Hottest 60 | 60 60 60 Shots Fired 78 | 24 8 46 Gun 55 | 24 8 23 Cannon . | . . . Launcher 23 | . . 23 Special . | . . . Kinetic 28 | 12 4 12 Thermal 27 | 12 4 11 Explosive 23 | . . 23 Electromagnetic . | . . . Robot Hit Streak 5 | 4 2 5 Robot Miss Streak 4 | 4 2 2 Penetration Max . | . . . Secondary Targets . | . . . Shots Hit Robots 35 | 11 4 20 Core Hits 39 | 4 2 33 Critical Kills . | . . . Critical Parts Destroyed . | . . . Critical Strikes . | . . . Melee Attacks . | . . . Impact . | . . . Slashing . | . . . Piercing . | . . . Sneak Attacks . | . . . Combat Hostiles . | . . . Follow-up Attacks . | . . . Damage Inflicted 1556 | 147 50 1359 Guns 361 | 147 50 164 Cannons . | . . . Explosions 1195 | . . 1195 Melee . | . . . Ramming . | . . . Kinetic 206 | 93 27 86 Thermal 155 | 54 23 78 Explosive 1195 | . . 1195 Electromagnetic . | . . . Impact . | . . . Slashing . | . . . Piercing . | . . . Highest Corruption 3 | . 3 3 Average Corruption 2 | . 2 3 Corruption Purged . | . . . Corruption Blocked . | . . . Effects 19 | . 1 18 Message Errors 6 | . 1 5 Matter Fused 3 | . . 3 Heat Flow Errors 1 | . . 1 Energy Discharges 3 | . . 3 Parts Rejected 1 | . . 1 Data Loss (minor) 2 | . . 2 Weapon Failures 3 | . . 3 Overload Shots . | . . . Overflow Damage 22 | . . 22 Projectiles . | . . . Explosions 22 | . . 22 Melee . | . . . Knockbacks . | . . . Impact . | . . . Kinetic . | . . . Secondary . | . . . Self-Inflicted Damage 437 | . . 437 Shots 10 | . . 10 Rammed . | . . . Targets Rammed . | . . . Kicked . | . . . Crushed . | . . . Highest Temperature 115 | . 18 115 Average Temperature 24 | . 14 25 Received Heat Transfer 98 | . 18 80 Siege Activations . | . . . Martial Activations . | . . . Shielding Activations . | . . . Robots Disrupted . | . . . Combat Hostiles . | . . . Robots Corrupted . | . . . Combat Hostiles . | . . . Parts Fried . | . . . Impact Corruptions . | . . . Robots Melted . | . . . Combat Hostiles . | . . . Parts Melted . | . . . Heat Transferred 350 | 125 50 175 Parts Sabotaged . | . . . Parts Stolen . | . . . Parts Stripped . | . . . Power Chain Reactions . | . . . Alert | -11 -10 -10 ------- Run | Yrd Mat Min Maximum Alert Level . | . . . Low Security (%) 100 | 100 100 100 Level 1 . | . . . Level 2 . | . . . Level 3 . | . . . Level 4 . | . . . Level 5 . | . . . High Security . | . . . Max Security . | . . . Peak Influence 91 | 5 30 91 Initial 3 | . . 3 Average 8 | 1 2 11 Influence Increases 276 | 15 30 231 Destroy 0b10 Robot/C 140 | . 20 120 Destroy 0b10 Robot/NC 35 | 15 . 20 Destroy Leader 30 | . 10 20 Destroy Structure 71 | . . 71 Influence Decreases 195 | 15 20 160 Entered New Map 7 | . . 7 Time Decay 106 | 15 20 71 Lost Part 82 | . . 82 Squads Dispatched 2 | . 1 1 Investigation 1 | . . 1 Extermination . | . . . Reinforcement 1 | . 1 . Assault . | . . . Garrison . | . . . Intercept . | . . . Searches Triggered . | . . . Construction Impeded . | . . . Haulers Reinforced . | . . . Active Scanning Responses . | . . . Cargo Convoy Interrupts . | . . . Stealth | -11 -10 -10 --------- Run | Yrd Mat Min Distress Signals . | . . . Communications Jammed . | . . . Distress Signals . | . . . Times Spotted 26 | . 3 23 Peak Tracking Total 6 | . 1 6 Tactical Retreats . | . . . Traps | -11 -10 -10 ------- Run | Yrd Mat Min Traps Triggered 2 | . 2 . Indirectly . | . . . Trap Hack Attempts . | . . . Triggered . | . . . Disarmed . | . . . Reprogrammed . | . . . Reused . | . . . Traps Extracted . | . . . Installed . | . . . Triggered . | . . . Machines | -11 -10 -10 ---------- Run | Yrd Mat Min Machines Disabled . | . . . Max in Single Turn . | . . . Machines Repaired . | . . . Machines Dismantled . | . . . Machines Sabotaged . | . . . Overloaded Fab Kills . | . . . Hacking | -11 -10 -10 --------- Run | Yrd Mat Min Machines Accessed 2 | . 1 1 Terminals 1 | . 1 . Fabricators . | . . . Repair Stations . | . . . Recycling Units . | . . . Scanalyzers . | . . . Garrison Access . | . . . Total Hacks 6 | . 5 1 Successful 2 | . 1 1 Failed 4 | . 4 . Catastrophic . | . . . Database Lockouts . | . . . Manual 5 | . 5 . Terminals 5 | . 5 . Fabricators . | . . . Repair Stations . | . . . Recycling Units . | . . . Scanalyzers . | . . . Garrison Access . | . . . Terminal Hacks 1 | . . 1 Open Door 1 | . . 1 Fabricator Hacks . | . . . Repair Station Hacks . | . . . Recycling Unit Hacks . | . . . Scanalyzer . | . . . Garrison Access Hacks . | . . . Unauthorized Hacks 1 | . 1 . Terminals 1 | . 1 . Skim 1 | . 1 . Fabricators . | . . . Repair Stations . | . . . Recycling Units . | . . . Scanalyzers . | . . . Garrison Access . | . . . Data Cores Recovered . | . . . Used . | . . . Hacking Detections 1 | . 1 . Full Trace Events . | . . . Feedback Events . | . . . Feedback Blocked . | . . . Robot Schematics Acquired . | . . . Robots Built . | . . . Authchips . | . . . Time . | . . . Total Robot Build Rating . | . . . Part Schematics Acquired . | . . . Parts Built . | . . . Authchips . | . . . Time . | . . . Total Part Build Rating . | . . . Part Studies Acquired . | . . . Parts Repaired . | . . . Time . | . . . Parts Recycled . | . . . Recycled Matter . | . . . Retrieved Matter . | . . . Retrieved Components . | . . . Parts Scanalyzed . | . . . Part Schematics Acquired . | . . . Parts Damaged . | . . . Bothacking | -11 -10 -10 ------------ Run | Yrd Mat Min Used RIF Installer . | . . . Robots Hacked . | . . . Non-combat . | . . . Combat . | . . . Robot Hacks Applied . | . . . Relay Couplers Released . | . . . Fabnet Peak Effective % . | . . . Robots Rewired . | . . . Allies Hacked . | . . . Hacks Repelled . | . . . Allies | -11 -10 -10 -------- Run | Yrd Mat Min Total Allies 1 | . . 1 Largest Group 1 | . . 1 Highest-Rated Group 31 | . . 31 Highest-Rated Ally 31 | . . 31 Total Orders . | . . . Ally Attacks . | . . . Total Damage . | . . . Kills . | . . . Allies Corrupted . | . . . Allies Melted . | . . . Intel | -11 -10 -10 ------- Run | Yrd Mat Min Active Infowar (turns) 443 | 13 261 169 Seismic 443 | 13 261 169 Robot Analysis Total . | . . . Derelict Logs Recovered 3 | . . 3 Drone Launches . | . . . Drone Recoveries . | . . . Exploration | -11 -10 -10 ------------- Run | Yrd Mat Min Turns Passed 1293 | 175 261 857 Spaces Moved 701 | 88 147 466 Core 18 | 18 . . Treads 683 | 70 147 466 Legs . | . . . Wheels . | . . . Hover . | . . . Flight . | . . . Fastest Speed 50 | 50 160 160 Average Speed 157 | 137 160 160 Slowest Speed 160 | 160 160 160 Overloaded Moves . | . . . Propulsion Burnouts . | . . . Robots Hopped . | . . . Potential Cave-ins . | . . . Cave-ins Triggered . | . . . Exploration Rate (%) 39 | 6 27 86 Regions Visited 2 Branch Regions 1 Pre-discovered Areas . | . . . Known Exits Taken . | . . . Unknown Exits Taken 2 | 1 1 . Scrap Searched 3 | . . 3 Spaces Dug 4 | . . 4 Terrain Destroyed 144 | . . 144 Melee . | . . . Projectile . | . . . AOE 144 | . . 144 Terrain Rammed . | . . . Walls Destroyed . | . . . Machines Disabled . | . . . Actions | -11 -10 -10 --------- Run | Yrd Mat Min Total 816 | 118 168 530 Wait 12 | . . 12 Move 699 | 87 146 466 Hop . | . . . Pick Up 24 | 12 8 4 Fast Attach . | . . . Attach 12 | 7 . 5 Detach . | . . . Swap 6 | . 3 3 Drop 10 | . 7 3 Fire 53 | 12 4 37 Melee . | . . . Ram . | . . . Kick . | . . . Crush . | . . . Escape Stasis . | . . . Rewire . | . . . Trap . | . . . Miscellaneous . | . . . Route ------- -11/Scrapyard -10/Materials (discovered 2 exits: *Min x2) -10/Mines (discovered 2 exits: [*Mat x2]) History --------- Turn | Location | Event 6 | -11/Scrapyard | Discovered new exit (range 14) 176 | -11/Scrapyard | Entered Materials 176 | -10/Materials | Discovered new exit (range 15) 318 | -10/Materials | Build established: Mutant 427 | -10/Materials | Discovered new exit (range 7) 437 | -10/Materials | Entered Mines 439 | -10/Mines | Discovered new exit (range 5) 456 | -10/Mines | Received a Mining Laser from a helpful Derelict 598 | -10/Mines | Met a Derelict shopkeep closing up shop 940 | -10/Mines | Discovered new exit (range 5) 1001 | -10/Mines | Found a hidden stash of uninstalled traps 1134 | -10/Mines | Learned Materials non-interactive machine intel 1159 | -10/Mines | Assembled infested the area 1159 | -10/Mines | Learned Materials terminal intel 1164 | -10/Mines | Assisted by a Guerilla fighting off Assembled 1216 | -10/Mines | Core integrity fell below 50% 1262 | -10/Mines | Core integrity fell below 20% 1267 | -10/Mines | Lost 7 parts (1p2n2u2w) 1294 | -10/Mines | Destroyed self with Mini Grenade Launcher Last Messages --------------- 01274_ K-01 Serf collects debris. 01275_ U-05 Engineer lays Concrete. 01277_ as-69830 destroyed. 01277_ K-01 Serf collects debris. 01278_ The unstable cave ceiling collapses. 01278_ U-05 Engineer lays Concrete. 01279_ U-05 Engineer builds a Wall. 01280_ K-01 Serf collects debris. 01283_ The unstable cave ceiling collapses. 01283_ U-05 Engineer lays Concrete. 01284_ Acquired 8 matter. 01284_ K-01 Serf collects debris. 01284_ U-05 Engineer lays Concrete. 01285_ Acquired 5 matter. 01286_ U-05 Engineer builds a Wall. 01289_ Imp. Treads destroyed. 01290_ U-05 Engineer lays Concrete. 01290_ U-05 Engineer destroyed. 01293_ Imp. Treads destroyed. 01294_ Destroyed Asb. Hover Unit. Map ----- +----------------------------------------------------+ | ??????????????????# ????????????##### | | ?????????????????## ????????????# | | ????????????????## ????????????# | | ???????????????## ???########## ### | | ???????????????# ???# ## #?? | | ???????????????# ???# ## #?? | | ???????????????# #### ## #?? | | ????????????????# # #?? | | ????????????????# # # #?? | | ????????????????## = # # ### | | ????????????????# # # | | ????????????????# !% # | | ????????????#???# = # # | | ???????????## ??# # # ## = | | ???????????# ?## # # ## % | | ???????????+ ?? # # # | | ???????????+ ? | | ???????????? ## a | | ??????????????## % | | ?????####?????# # # a | | ????## ##??#### k ### | | ????# #?## # ## | | ????# ### ####### # | | ????# < # = ##????# ! ## | | ????# ## ##???# ##? | | ????# ## @a #??## ##?? | | ????# ### #?## ##??? | | ????# #?# #### ##???? | | ????# #?# ## ##?# ##????? | | ????# ### ###?## ##??# ##?????? | | ????#|## ##??## ##### #??????? | | ????# #???# ## #?###### | | ????#### #???# ### ## #?#""""" | | ???????# #???### ##?# ## #?# [ !] | | ???????# #?????## #??# #?## | | ???????# #??????## #??#### #??#!| | | ?????### #???????# #???## ##### # | | ?????# #???????# #???# X | | ?????# ####???????# ##### | | ????## #########??# | | ????# #??# | | ????# #??############## | | ????# #?## ##????????## | | ????# #?# #????????# | | ????# """ """ ### #???????# | | ????# """ """ ## ##?????# ### | | ????# """ """ # ###???# ##?# | | ????##########?# ###?## ##??# | | ???????????????# ##?###????# | | ???????????????# ## #??####### | +----------------------------------------------------+ Best States ------------- Heat Dissipation 25 Energy Generation 10 Energy Capacity 250 Matter Stores 300 Matter Capacity 300 Sight Range 16 Terrain Scan Density 10 Armor Coverage 150 Evasion (%) 50 Recoil Reduction 2 Item Schematics ----------------- None Robot Schematics ------------------ None Fabricated ------------ Nothing Repaired ---------- Nothing Studied --------- None Alien Tech Used ----------------- None Achievements -------------- None Challenges ------------ None Game ------ Seed RingMiningSuit Manual? 0 Play Time 00:09:08 Cumulative 474.3 hours Start 2025.11.05 @ 22:09:37 End 2025.11.05 @ 22:15:13 Sessions 1 Manual Loads 0 Difficulty Rogue Special Mode None Game No. 601 Rogue 601 Adventurer 0 Explorer 0 Win Type - Total 14 Types 6/0/2/2/1/0/2/1/0/0 Lore% 90 Gallery% 85 Achievement% 63 Wizard Run 0 Options --------- Layout 2 ASCII 0 Keyboard 0 Movement Mouse Keybinds 0 Fullscreen 1 Font 24/Smallcaps Map View 50x49 Zoom Use 0% Tactical HUD 1 Map Filters NONE Filters NONE Steam 1 RUN: 1f2cfc88-af84-46a3-9979-8833cfc456ef